fUSD/lending_fUSD_20241106
["ID","MTS","AMOUNT","RATE_DAILY","PERIOD"]
[341494520,1730922666158,-859.1,0.00029315,2]
[341494521,1730922666169,-151.0,0.00029315,7]
[341494522,1730922666179,-500.0,0.00029315,2]
[341494523,1730922666188,-500.0,0.00029315,2]
[341494524,1730922666199,-500.0,0.00029315,2]
[341494525,1730922666209,-1523.21,0.00029315,2]
[341494527,1730922666220,-616.69,0.00029315,2]
[341494528,1730922666229,-536.1,0.00029315,2]
[341494529,1730922666239,-530.09,0.00029315,2]
[341494530,1730922666248,-1724.32,0.00029315,2]
[341494531,1730922666257,-791.56,0.00029315,2]
[341494532,1730922666266,-1306.48,0.00029315,2]
[341494533,1730922666276,-500.0,0.00029315,2]
[341494534,1730922666286,-989.59,0.00029315,2]
[341494535,1730922666295,-500.0,0.00029315,2]
[341494536,1730922666305,-508.25,0.00029315,2]
[341494537,1730922666314,-500.0,0.00029315,2]
[341494538,1730922666324,-2159.33,0.00029315,2]
[341494539,1730922666333,-1683.35,0.00029315,2]
[341494540,1730922666343,-536.59,0.00029315,2]
[341494541,1730922666353,-1052.72,0.00029315,2]
[341494542,1730922666362,-500.0,0.00029315,2]
[341494543,1730922666372,-500.0,0.00029315,2]
[341494544,1730922666385,-500.0,0.00029315,2]
[341494545,1730922666396,-500.0,0.00029315,2]
[341494546,1730922666407,-1358.49,0.00029315,2]
[341494547,1730922666418,-500.0,0.00029315,2]
[341494548,1730922666429,-1719.08,0.00029315,2]
[341494549,1730922666439,-500.0,0.00029315,2]
[341494550,1730922666448,-500.0,0.00029315,2]
[341494551,1730922666458,-1081.12,0.00029315,2]
[341494552,1730922666468,-554.88,0.00029315,2]
[341494553,1730922666478,-608.63,0.00029315,2]
[341494554,1730922666488,-500.0,0.00029315,2]
[341494555,1730922666497,-500.0,0.00029315,2]
[341494556,1730922666507,-500.0,0.00029315,2]
[341494557,1730922666516,-655.47,0.00029315,2]
[341494558,1730922666525,-349.43229887,0.00029315,2]
[341494559,1730922666535,-576.36,0.00029315,2]
[341494560,1730922666545,-641.95,0.00029315,2]
[341494561,1730922666555,-325.5624174,0.00029315,2]
[341494562,1730922666565,-2127.75,0.00029315,2]
[341494563,1730922666574,-978.4,0.00029315,2]
[341494564,1730922666585,-565.93,0.00029315,2]
[341494565,1730922666595,-1670.33,0.00029315,2]
[341494566,1730922666605,-500.0,0.00029315,2]
[341494567,1730922666614,-500.0,0.00029315,2]
[341494568,1730922666624,-665.68,0.00029315,2]
[341494569,1730922666634,-500.0,0.00029315,2]
[341494570,1730922666643,-500.0,0.00029315,2]
[341494571,1730922666653,-500.0,0.00029315,2]
[341494572,1730922666662,-1219.79,0.00029315,2]
[341494573,1730922666672,-500.0,0.00029315,2]
[341494574,1730922666682,-166.42389987,0.00029315,2]
[341494575,1730922666692,-500.0,0.00029315,2]
[341494576,1730922666701,-151.0,0.00029315,7]
[341494577,1730922666711,-1277.02,0.00029315,2]
[341494578,1730922666723,-1209.34,0.00029315,2]
[341494579,1730922666732,-538.64,0.00029315,2]
[341494580,1730922666742,-500.0,0.00029315,2]
[341494581,1730922666751,-229.376105,0.00029315,7]
[341494582,1730922666761,-500.0,0.00029315,2]
[341494583,1730922666770,-1000.12,0.00029315,2]
[341494584,1730922666780,-500.0,0.00029315,2]
[341494585,1730922666790,-500.0,0.00029315,2]
[341494586,1730922666800,-151.0,0.00029315,7]
[341494587,1730922666810,-802.32,0.00029315,2]
[341494588,1730922666820,-1976.19,0.00029315,2]
[341494589,1730922666829,-500.0,0.00029315,2]
[341494590,1730922666839,-500.0,0.00029315,2]
[341494591,1730922666848,-569.46,0.00029315,2]
[341494592,1730922666858,-500.0,0.00029315,2]
[341494593,1730922666867,-894.15,0.00029315,2]
[341494594,1730922666877,-500.0,0.00029315,2]
[341494595,1730922666887,-151.0,0.00029315,7]
[341494596,1730922666897,-151.0,0.00029315,7]
[341494597,1730922666906,-151.0,0.00029315,7]
[341494598,1730922666916,-155.378012,0.00029315,7]
[341494599,1730922666926,-155.378012,0.00029315,7]
[341494600,1730922666936,-151.0,0.00029315,7]
[341494601,1730922666946,-151.0,0.00029315,7]
[341494602,1730922666955,-293.793734,0.00029315,7]
[341494603,1730922666965,-293.793734,0.00029315,7]
[341494604,1730922666975,-151.0,0.00029315,7]
[341494605,1730922666985,-178.825587,0.00029315,7]
[341494606,1730922666994,-178.825587,0.00029315,7]
[341494607,1730922667004,-151.0,0.00029315,7]
[341494608,1730922667013,-151.0,0.00029315,7]
[341494609,1730922667023,-151.0,0.00029315,7]
[341494610,1730922667032,-641.332644,0.00029315,7]
[341494611,1730922667042,-641.332644,0.00029315,7]
[341494612,1730922667051,-824.163633,0.00029315,7]
[341494613,1730922667061,-824.163633,0.00029315,7]
[341494614,1730922667070,-230.9,0.00029335,120]
[341494615,1730922667080,-502.79614403,0.00029342,5]
[341494616,1730922667090,-1000.0,0.00029342,5]
[341494617,1730922667101,-1000.0,0.00029342,5]
[341494618,1730922667110,-162.14,0.00029366,2]
[341494619,1730922667121,-364.86,0.00029451,2]
[341494620,1730922667131,-442.39089251,0.00029579,2]
[341494621,1730922667141,-151.0,0.00029589,7]
[341494622,1730922667153,-151.0,0.00029589,7]
[341494623,1730922667163,-151.0,0.00029589,7]
[341494624,1730922667173,-500.0,0.00029589,2]
[341494625,1730922667182,-157.226608,0.00029589,7]
[341494626,1730922667191,-157.107717,0.00029589,7]
[341494627,1730922667201,-151.0,0.00029589,7]
[341494628,1730922667210,-500.0,0.00029589,2]
[341494629,1730922667221,-500.0,0.00029589,2]
[341494630,1730922667231,-500.0,0.00029589,2]
[341494631,1730922667240,-351.1010788,0.00029589,2]
[341494632,1730922667250,-541.74352777,0.00029589,2]
[341494633,1730922667403,-747.29,0.00029589,2]
[341494634,1730922667414,-165.436283,0.00029589,7]
[341494635,1730922667424,-500.0,0.00029589,2]
[341494636,1730922667435,-165.436283,0.00029589,7]
[341494637,1730922667446,-500.0,0.00029589,2]
[341494638,1730922667455,-151.0,0.00029589,7]
[341494639,1730922667465,-155.928053,0.00029589,7]
[341494640,1730922667477,-524.69,0.00029589,2]
[341494641,1730922667487,-151.0,0.00029589,7]
[341494642,1730922667496,-500.0,0.00029589,2]
[341494643,1730922667506,-500.0,0.00029589,2]
[341494644,1730922667516,-500.0,0.00029589,2]
[341494645,1730922667525,-1051.01,0.00029589,2]
[341494646,1730922667535,-500.0,0.00029589,2]
[341494647,1730922667545,-851.78,0.00029589,2]
[341494648,1730922667554,-500.0,0.00029589,2]
[341494649,1730922667564,-500.0,0.00029589,2]
[341494650,1730922667574,-500.0,0.00029589,2]
[341494651,1730922667584,-572.0,0.00029589,2]
[341494652,1730922667594,-500.0,0.00029589,2]
[341494653,1730922667603,-500.0,0.00029589,2]
[341494654,1730922667613,-500.0,0.00029589,2]
[341494655,1730922667622,-500.0,0.00029589,2]
[341494656,1730922667632,-659.87,0.00029589,2]
[341494657,1730922667641,-286.25088104,0.00029589,2]
[341494658,1730922667650,-1047.2,0.00029589,2]
[341494659,1730922667660,-381.75,0.00029589,2]
[341494660,1730922667670,-500.0,0.00029589,2]
[341494661,1730922667679,-500.0,0.00029589,2]
[341494662,1730922667689,-933.13,0.00029589,2]
[341494663,1730922667699,-502.97,0.00029589,2]
[341494664,1730922667709,-500.0,0.00029589,2]
[341494665,1730922667722,-500.0,0.00029589,2]
[341494666,1730922667732,-500.0,0.00029589,2]
[341494667,1730922667742,-500.0,0.00029589,2]
[341494668,1730922667751,-500.0,0.00029589,2]
[341494669,1730922667761,-663.55,0.00029589,2]
[341494670,1730922667771,-500.0,0.00029589,2]
[341494671,1730922667780,-500.0,0.00029589,2]
[341494672,1730922667790,-500.0,0.00029589,2]
[341494673,1730922667800,-500.0,0.00029589,2]
[341494674,1730922667810,-500.0,0.00029589,2]
[341494675,1730922667820,-718.46,0.00029589,2]
[341494676,1730922667829,-500.0,0.00029589,2]
[341494677,1730922667838,-549.51,0.00029589,2]
[341494678,1730922667848,-151.0,0.00029589,7]
[341494679,1730922667857,-500.0,0.00029589,2]
[341494680,1730922667866,-151.0,0.00029589,7]
[341494681,1730922667876,-151.0,0.00029589,7]
[341494682,1730922667886,-500.0,0.00029589,2]
[341494683,1730922667895,-620.75,0.00029589,2]
[341494684,1730922667904,-500.0,0.00029589,2]
[341494685,1730922667915,-500.0,0.00029589,2]
[341494686,1730922667925,-721.78,0.00029589,2]
[341494687,1730922667935,-500.0,0.00029589,2]
[341494688,1730922667947,-578.58,0.00029589,2]
[341494689,1730922667958,-1169.27,0.00029589,2]
[341494690,1730922667969,-500.0,0.00029589,2]
[341494691,1730922667978,-500.0,0.00029589,2]
[341494692,1730922667987,-626.9,0.00029589,2]
[341494693,1730922667996,-500.0,0.00029589,2]
[341494694,1730922668006,-151.0,0.00029589,7]
[341494695,1730922668019,-500.0,0.00029589,2]
[341494696,1730922668029,-151.0,0.00029589,7]
[341494697,1730922668039,-528.97,0.00029589,2]
[341494698,1730922668048,-500.0,0.00029589,2]
[341494699,1730922668059,-588.31,0.00029589,2]
[341494700,1730922668070,-500.0,0.00029589,2]
[341494701,1730922668080,-500.0,0.00029589,2]
[341494702,1730922668090,-992.82,0.00029589,2]
[341494703,1730922668100,-500.0,0.00029589,2]
[341494704,1730922668110,-500.0,0.00029589,2]
[341494705,1730922668120,-500.0,0.00029589,2]
[341494706,1730922668129,-500.0,0.00029589,2]
[341494707,1730922668138,-949.12,0.00029589,2]
[341494708,1730922668148,-200.446961,0.00029589,7]
[341494709,1730922668157,-824.345403,0.00029589,7]
[341494710,1730922668167,-200.446961,0.00029589,7]
[341494711,1730922668178,-500.0,0.00029589,2]
[341494712,1730922668189,-824.345403,0.00029589,7]
[341494713,1730922668199,-628.45,0.00029589,2]
[341494714,1730922668211,-892.79,0.00029589,2]
[341494715,1730922668223,-574.4,0.00029589,2]
[341494716,1730922668232,-500.0,0.00029589,2]
[341494717,1730922668241,-500.0,0.00029589,2]
[341494718,1730922668251,-500.0,0.00029589,2]
[341494719,1730922668261,-317.97,0.00029589,2]
[341494720,1730922668271,-641.4,0.00029589,2]
[341494721,1730922668283,-1259.56,0.00029589,2]
[341494722,1730922668292,-500.0,0.00029589,2]
[341494723,1730922668302,-192.2,0.00029589,2]
[341494724,1730922668314,-500.0,0.00029589,2]
[341494725,1730922668325,-500.0,0.00029589,2]
[341494726,1730922668335,-500.0,0.00029589,2]
[341494727,1730922668345,-500.0,0.00029589,2]
[341494728,1730922668357,-941.09,0.00029589,2]
[341494729,1730922668368,-260.66667176,0.00029589,2]
[341494730,1730922668381,-859.1,0.00029589,2]
[341494731,1730922668392,-286.746537,0.00029589,7]
[341494732,1730922668407,-500.0,0.00029589,2]
[341494733,1730922668416,-500.0,0.00029589,2]
[341494734,1730922668427,-500.0,0.00029589,2]
[341494735,1730922668436,-1523.21,0.00029589,2]
[341494736,1730922668445,-616.69,0.00029589,2]
[341494737,1730922668455,-536.1,0.00029589,2]
[341494738,1730922668465,-530.09,0.00029589,2]
[341494739,1730922668478,-1724.32,0.00029589,2]
[341494740,1730922668488,-791.56,0.00029589,2]
[341494741,1730922668497,-1306.48,0.00029589,2]
[341494742,1730922668507,-500.0,0.00029589,2]
[341494743,1730922668518,-989.59,0.00029589,2]
[341494744,1730922668527,-500.0,0.00029589,2]
[341494745,1730922668537,-508.25,0.00029589,2]
[341494746,1730922668547,-500.0,0.00029589,2]
[341494747,1730922668558,-2159.33,0.00029589,2]
[341494748,1730922668570,-1683.35,0.00029589,2]
[341494749,1730922668579,-536.59,0.00029589,2]
[341494750,1730922668590,-1052.72,0.00029589,2]
[341494751,1730922668600,-500.0,0.00029589,2]
[341494752,1730922668611,-500.0,0.00029589,2]
[341494753,1730922668621,-500.0,0.00029589,2]
[341494754,1730922668631,-500.0,0.00029589,2]
[341494755,1730922668642,-1358.49,0.00029589,2]
[341494756,1730922668651,-500.0,0.00029589,2]
[341494757,1730922668662,-500.0,0.00029589,2]
[341494758,1730922668671,-1719.08,0.00029589,2]
[341494759,1730922668682,-500.0,0.00029589,2]
[341494760,1730922668692,-1081.12,0.00029589,2]
[341494761,1730922668701,-554.88,0.00029589,2]
[341494762,1730922668711,-608.63,0.00029589,2]
[341494763,1730922668723,-500.0,0.00029589,2]
[341494764,1730922668733,-500.0,0.00029589,2]
[341494765,1730922668743,-500.0,0.00029589,2]
[341494766,1730922668753,-655.47,0.00029589,2]
[341494767,1730922668764,-576.36,0.00029589,2]
[341494768,1730922668774,-641.95,0.00029589,2]
[341494769,1730922668784,-2127.75,0.00029589,2]
[341494770,1730922668796,-978.4,0.00029589,2]
[341494771,1730922668807,-565.93,0.00029589,2]
[341494772,1730922668818,-1670.33,0.00029589,2]
[341494773,1730922668829,-500.0,0.00029589,2]
[341494774,1730922668839,-500.0,0.00029589,2]
[341494775,1730922668850,-665.68,0.00029589,2]
[341494776,1730922668860,-500.0,0.00029589,2]
[341494777,1730922668872,-500.0,0.00029589,2]
[341494778,1730922668882,-500.0,0.00029589,2]
[341494779,1730922668893,-1219.79,0.00029589,2]
[341494780,1730922668903,-500.0,0.00029589,2]
[341494781,1730922668912,-520.93832521,0.00029589,2]
[341494782,1730922668922,-1277.02,0.00029589,2]
[341494783,1730922668932,-1209.34,0.00029589,2]
[341494784,1730922668941,-538.64,0.00029589,2]
[341494785,1730922668952,-500.0,0.00029589,2]
[341494786,1730922668963,-500.0,0.00029589,2]
[341494787,1730922668975,-1000.12,0.00029589,2]
[341494788,1730922668985,-500.0,0.00029589,2]
[341494789,1730922668995,-500.0,0.00029589,2]
[341494790,1730922669005,-802.32,0.00029589,2]
[341494791,1730922669014,-1976.19,0.00029589,2]
[341494792,1730922669024,-500.0,0.00029589,2]
[341494793,1730922669034,-500.0,0.00029589,2]
[341494794,1730922669043,-569.46,0.00029589,2]
[341494795,1730922669052,-500.0,0.00029589,2]
[341494796,1730922669062,-894.15,0.00029589,2]
[341494797,1730922669072,-500.0,0.00029589,2]
[341494798,1730922669082,-151.0,0.00029589,7]
[341494799,1730922669091,-151.0,0.00029589,7]
[341494800,1730922669101,-151.0,0.00029589,7]
[341494801,1730922669110,-155.378012,0.00029589,7]
[341494802,1730922669121,-155.378012,0.00029589,7]
[341494803,1730922669131,-151.0,0.00029589,7]
[341494804,1730922669140,-151.0,0.00029589,7]
[341494805,1730922669151,-151.0,0.00029589,7]
[341494806,1730922669162,-151.0,0.00029589,7]
[341494807,1730922669172,-641.332644,0.00029589,7]
[341494808,1730922669182,-641.332644,0.00029589,7]
[341494809,1730922669192,-151.0,0.00029589,7]
[341494810,1730922669205,-824.163633,0.00029589,7]
[341494811,1730922669215,-824.163633,0.00029589,7]
[341494812,1730922669226,-268.019373,0.00029589,7]
[341494813,1730922669236,-151.0,0.00029589,7]
[341494814,1730922669246,-1043.112019,0.00029589,7]
[341494815,1730922669255,-1043.112019,0.00029589,7]
[341494816,1730922669266,-151.0,0.00029589,7]
[341494817,1730922669275,-226.766311,0.00029589,7]
[341494818,1730922669285,-151.0,0.00029589,7]
[341494819,1730922669294,-151.0,0.00029589,7]
[341494820,1730922669303,-151.0,0.00029589,7]
[341494821,1730922669312,-152.682598,0.00029589,7]
[341494822,1730922669321,-151.0,0.00029589,7]
[341494823,1730922669331,-594.868439,0.00029589,7]
[341494824,1730922669340,-594.868439,0.00029589,7]
[341494825,1730922669349,-11296.61990667,0.00029604,15]
[341494826,1730922669359,-242.37,0.00029636,2]
[341494827,1730922669368,-1000.0,0.00029642,5]
[341494828,1730922669378,-513.57362853,0.00029642,5]
[341494829,1730922669390,-171.88,0.00029648,2]
[341494830,1730922669400,-151.0,0.00029862,7]
[341494831,1730922669409,-151.0,0.00029862,7]
[341494832,1730922669419,-293.793734,0.00029862,7]
[341494833,1730922669430,-293.793734,0.00029862,7]
[341494834,1730922669439,-500.0,0.00029863,2]
[341494835,1730922669450,-500.0,0.00029863,2]
[341494836,1730922669461,-500.0,0.00029863,2]
[341494837,1730922669472,-500.0,0.00029863,2]
[341494838,1730922669482,-747.29,0.00029863,2]
[341494839,1730922669491,-500.0,0.00029863,2]
[341494840,1730922669501,-500.0,0.00029863,2]
[341494841,1730922669510,-524.69,0.00029863,2]
[341494842,1730922669519,-500.0,0.00029863,2]
[341494843,1730922669529,-500.0,0.00029863,2]
[341494844,1730922669538,-500.0,0.00029863,2]
[341494845,1730922669548,-1051.01,0.00029863,2]
[341494846,1730922669557,-500.0,0.00029863,2]
[341494847,1730922669566,-851.78,0.00029863,2]
[341494848,1730922669575,-500.0,0.00029863,2]
[341494849,1730922669584,-500.0,0.00029863,2]
[341494850,1730922669593,-500.0,0.00029863,2]
[341494851,1730922669875,-572.0,0.00029863,2]
[341494852,1730922669886,-500.0,0.00029863,2]
[341494853,1730922669897,-457.08946089,0.00029863,2]
[341494854,1730922669907,-500.0,0.00029863,2]
[341494855,1730922669917,-500.0,0.00029863,2]
[341494856,1730922669927,-659.87,0.00029863,2]
[341494857,1730922669937,-1047.2,0.00029863,2]
[341494858,1730922669947,-500.0,0.00029863,2]
[341494859,1730922669956,-500.0,0.00029863,2]
[341494860,1730922669967,-933.13,0.00029863,2]
[341494861,1730922669978,-502.97,0.00029863,2]
[341494862,1730922669987,-500.0,0.00029863,2]
[341494863,1730922669996,-500.0,0.00029863,2]
[341494864,1730922670006,-500.0,0.00029863,2]
[341494865,1730922670016,-500.0,0.00029863,2]
[341494866,1730922670027,-500.0,0.00029863,2]
[341494867,1730922670036,-663.55,0.00029863,2]
[341494868,1730922670046,-500.0,0.00029863,2]
[341494869,1730922670056,-500.0,0.00029863,2]
[341494870,1730922670065,-500.0,0.00029863,2]
[341494871,1730922670075,-500.0,0.00029863,2]
[341494872,1730922670084,-500.0,0.00029863,2]
[341494873,1730922670093,-718.46,0.00029863,2]
[341494874,1730922670103,-500.0,0.00029863,2]
[341494875,1730922670113,-549.51,0.00029863,2]
[341494876,1730922670123,-151.0,0.00029863,7]
[341494877,1730922670133,-500.0,0.00029863,2]
[341494878,1730922670142,-151.0,0.00029863,7]
[341494879,1730922670151,-151.0,0.00029863,7]
[341494880,1730922670161,-500.0,0.00029863,2]
[341494881,1730922670170,-620.75,0.00029863,2]
[341494882,1730922670179,-637.38145814,0.00029863,2]
[341494883,1730922670188,-500.0,0.00029863,2]
[341494884,1730922670198,-721.78,0.00029863,2]
[341494885,1730922670208,-500.0,0.00029863,2]
[341494886,1730922670220,-578.58,0.00029863,2]
[341494887,1730922670229,-1169.27,0.00029863,2]
[341494888,1730922670239,-500.0,0.00029863,2]
[341494889,1730922670249,-314.44556112,0.00029863,2]
[341494890,1730922670259,-626.9,0.00029863,2]
[341494891,1730922670268,-500.0,0.00029863,2]
[341494892,1730922670278,-151.0,0.00029863,7]
[341494893,1730922670288,-500.0,0.00029863,2]
[341494894,1730922670299,-151.0,0.00029863,7]
[341494895,1730922670309,-528.97,0.00029863,2]
[341494896,1730922670318,-500.0,0.00029863,2]
[341494897,1730922670329,-588.31,0.00029863,2]
[341494898,1730922670339,-450.0591405,0.00029863,2]
[341494899,1730922670349,-500.0,0.00029863,2]
[341494900,1730922670358,-992.82,0.00029863,2]
[341494901,1730922670367,-500.0,0.00029863,2]
[341494902,1730922670377,-500.0,0.00029863,2]
[341494903,1730922670387,-500.0,0.00029863,2]
[341494904,1730922670398,-500.0,0.00029863,2]
[341494905,1730922670408,-949.12,0.00029863,2]
[341494906,1730922670417,-200.446961,0.00029863,7]
[341494907,1730922670428,-824.345403,0.00029863,7]
[341494908,1730922670439,-200.446961,0.00029863,7]
[341494909,1730922670449,-500.0,0.00029863,2]
[341494910,1730922670458,-824.345403,0.00029863,7]
[341494911,1730922670467,-628.45,0.00029863,2]
[341494912,1730922670478,-892.79,0.00029863,2]
[341494913,1730922670488,-574.4,0.00029863,2]
[341494914,1730922670498,-500.0,0.00029863,2]
[341494915,1730922670511,-500.0,0.00029863,2]
[341494916,1730922670522,-500.0,0.00029863,2]
[341494917,1730922670533,-641.4,0.00029863,2]
[341494918,1730922670543,-1259.56,0.00029863,2]
[341494919,1730922670553,-312.60076982,0.00029863,2]
[341494920,1730922670562,-500.0,0.00029863,2]
[341494921,1730922670572,-500.0,0.00029863,2]
[341494922,1730922670581,-500.0,0.00029863,2]
[341494923,1730922670591,-385.90025293,0.00029863,2]
[341494924,1730922670600,-941.09,0.00029863,2]
[341494925,1730922670609,-859.1,0.00029863,2]
[341494926,1730922670619,-617.12871429,0.00029863,2]
[341494927,1730922670629,-500.0,0.00029863,2]
[341494928,1730922670638,-500.0,0.00029863,2]
[341494929,1730922670648,-1523.21,0.00029863,2]
[341494930,1730922670657,-616.69,0.00029863,2]
[341494931,1730922670666,-536.1,0.00029863,2]
[341494932,1730922670675,-530.09,0.00029863,2]
[341494933,1730922670685,-1724.32,0.00029863,2]
[341494934,1730922670695,-791.56,0.00029863,2]
[341494935,1730922670704,-1306.48,0.00029863,2]
[341494936,1730922670713,-500.0,0.00029863,2]
[341494937,1730922670723,-989.59,0.00029863,2]
[341494938,1730922670732,-469.99806014,0.00029863,2]
[341494939,1730922670743,-508.25,0.00029863,2]
[341494940,1730922670753,-500.0,0.00029863,2]
[341494941,1730922670762,-2159.33,0.00029863,2]
[341494942,1730922670773,-1683.35,0.00029863,2]
[341494943,1730922670784,-536.59,0.00029863,2]
[341494944,1730922670793,-1052.72,0.00029863,2]
[341494945,1730922670803,-500.0,0.00029863,2]
[341494946,1730922670812,-500.0,0.00029863,2]
[341494947,1730922670821,-500.0,0.00029863,2]
[341494948,1730922670831,-500.0,0.00029863,2]
[341494949,1730922670840,-1358.49,0.00029863,2]
[341494950,1730922670850,-500.0,0.00029863,2]
[341494951,1730922670859,-500.0,0.00029863,2]
[341494952,1730922670869,-1719.08,0.00029863,2]
[341494953,1730922670879,-500.0,0.00029863,2]
[341494954,1730922670890,-1081.12,0.00029863,2]
[341494955,1730922670902,-554.88,0.00029863,2]
[341494956,1730922670912,-608.63,0.00029863,2]
[341494957,1730922670924,-500.0,0.00029863,2]
[341494958,1730922670934,-500.0,0.00029863,2]
[341494959,1730922670944,-500.0,0.00029863,2]
[341494960,1730922670953,-655.47,0.00029863,2]
[341494961,1730922670964,-576.36,0.00029863,2]
[341494962,1730922670975,-641.95,0.00029863,2]
[341494963,1730922670984,-2127.75,0.00029863,2]
[341494964,1730922670993,-978.4,0.00029863,2]
[341494965,1730922671004,-565.93,0.00029863,2]
[341494966,1730922671015,-1670.33,0.00029863,2]
[341494967,1730922671027,-168.67945877,0.00029863,2]
[341494968,1730922671037,-605.17817634,0.00029863,2]
[341494969,1730922671047,-665.68,0.00029863,2]
[341494970,1730922671058,-500.0,0.00029863,2]
[341494971,1730922671068,-500.0,0.00029863,2]
[341494972,1730922671078,-500.0,0.00029863,2]
[341494973,1730922671088,-1219.79,0.00029863,2]
[341494974,1730922671098,-500.0,0.00029863,2]
[341494975,1730922671108,-1277.02,0.00029863,2]
[341494976,1730922671118,-1209.34,0.00029863,2]
[341494977,1730922671127,-538.64,0.00029863,2]
[341494978,1730922671136,-500.0,0.00029863,2]
[341494979,1730922671147,-500.0,0.00029863,2]
[341494980,1730922671156,-1000.12,0.00029863,2]
[341494981,1730922671166,-500.0,0.00029863,2]
[341494982,1730922671175,-500.0,0.00029863,2]
[341494983,1730922671184,-802.32,0.00029863,2]
[341494984,1730922671194,-1976.19,0.00029863,2]
[341494985,1730922671203,-500.0,0.00029863,2]
[341494986,1730922671212,-500.0,0.00029863,2]
[341494987,1730922671222,-569.46,0.00029863,2]
[341494988,1730922671231,-500.0,0.00029863,2]
[341494989,1730922671242,-894.15,0.00029863,2]
[341494990,1730922671251,-500.0,0.00029863,2]
[341494991,1730922671260,-151.0,0.00029863,7]
[341494992,1730922671269,-151.0,0.00029863,7]
[341494993,1730922671278,-192.244306,0.00029863,7]
[341494994,1730922671287,-155.378012,0.00029863,7]
[341494995,1730922671297,-155.378012,0.00029863,7]
[341494996,1730922671307,-178.825587,0.00029863,7]
[341494997,1730922671316,-178.825587,0.00029863,7]
[341494998,1730922671325,-151.0,0.00029863,7]
[341494999,1730922671335,-151.0,0.00029863,7]
[341495000,1730922671344,-824.163633,0.00029863,7]
[341495001,1730922671353,-824.163633,0.00029863,7]
[341495002,1730922671363,-151.0,0.00029863,7]
[341495003,1730922671373,-1043.112019,0.00029863,7]
[341495004,1730922671383,-1043.112019,0.00029863,7]
[341495005,1730922671392,-151.0,0.00029863,7]
[341495006,1730922671404,-171.88568189,0.00029873,2]
[341495007,1730922671413,-151.0,0.00029899,7]
[341495008,1730922671422,-151.0,0.00029899,7]
[341495009,1730922671432,-151.0,0.00029899,7]
[341495010,1730922671442,-151.0,0.00029899,7]
[341495011,1730922671451,-151.0,0.00029899,7]
[341495012,1730922671461,-151.0,0.00029899,7]
[341495013,1730922671471,-594.868439,0.00029899,7]
[341495014,1730922671481,-594.868439,0.00029899,7]
[341495015,1730922671490,-25188.89883352,0.000299,2]
[341495016,1730922671500,-3300.0,0.000299,10]
[341495017,1730922671509,-318.03721773,0.00029984,2]
[341495018,1730922671519,-171.047,0.0003,2]
[341495019,1730922671529,-289.531,0.0003,2]
[341495020,1730922671538,-230.83087364,0.0003,2]